fUST/lending_fUST_20250113
["ID","MTS","AMOUNT","RATE_DAILY","PERIOD"]
[348659734,1736701840294,-500.0,0.00019452,3]
[348659735,1736701840303,-500.0,0.00019452,3]
[348659736,1736701840312,-500.0,0.00019452,3]
[348659737,1736701840322,-500.0,0.00019452,3]
[348659738,1736701840331,-500.0,0.00019452,3]
[348659739,1736701840341,-500.0,0.00019452,3]
[348659740,1736701840350,-4946.84,0.00019452,3]
[348659741,1736701840359,-556.2,0.00019452,3]
[348659742,1736701840368,-252.28,0.00019452,3]
[348659743,1736701840377,-500.0,0.00019452,3]
[348659744,1736701840386,-407.75058424,0.00019452,3]
[348659745,1736701840396,-255.84280153,0.00019452,3]
[348659746,1736701840406,-500.0,0.00019452,3]
[348659747,1736701840415,-500.0,0.00019452,3]
[348659748,1736701840425,-500.0,0.00019452,3]
[348659749,1736701840434,-500.0,0.00019452,3]
[348659750,1736701840443,-176.91108322,0.00019452,3]
[348659751,1736701840453,-500.0,0.00019452,3]
[348659752,1736701840463,-500.0,0.00019452,3]
[348659753,1736701840472,-500.0,0.00019452,3]
[348659754,1736701840482,-500.0,0.00019452,3]
[348659755,1736701840491,-500.0,0.00019452,3]
[348659756,1736701840501,-500.0,0.00019452,3]
[348659757,1736701840510,-500.0,0.00019452,3]
[348659758,1736701840521,-500.0,0.00019452,3]
[348659759,1736701840530,-500.0,0.00019452,3]
[348659760,1736701840540,-500.0,0.00019452,3]
[348659761,1736701840550,-500.0,0.00019452,3]
[348659762,1736701840559,-500.0,0.00019452,3]
[348659763,1736701840570,-500.0,0.00019452,3]
[348659764,1736701840579,-500.0,0.00019452,3]
[348659765,1736701840589,-226.03,0.00019452,3]
[348659766,1736701840598,-430.00252232,0.00019452,3]
[348659767,1736701840607,-500.0,0.00019452,3]
[348659768,1736701840616,-1260.4,0.00019452,3]
[348659769,1736701840626,-500.0,0.00019452,3]
[348659770,1736701840635,-500.0,0.00019452,3]
[348659771,1736701840645,-500.0,0.00019452,3]
[348659772,1736701840654,-500.0,0.00019452,3]
[348659773,1736701840663,-500.0,0.00019452,3]
[348659774,1736701840672,-187.52997241,0.00019473,2]
[348659775,1736701840681,-151.13241126,0.00019473,2]
[348659776,1736701840690,-500.0,0.00019473,2]
[348659777,1736701840700,-263.64496828,0.00019473,2]
[348659778,1736701840709,-500.0,0.00019473,2]
[348659779,1736701840719,-537.64145595,0.00019473,2]
[348659780,1736701840728,-500.99679196,0.00019473,2]
[348659781,1736701840737,-500.0,0.00019473,2]
[348659782,1736701840747,-151.0,0.000196,2]
[348659783,1736701840756,-1000.0,0.00019721,2]
[348659784,1736701840767,-500.0,0.00019725,3]
[348659785,1736701840776,-416.26096145,0.00019725,3]
[348659786,1736701840786,-534.92,0.00019725,3]
[348659788,1736701840795,-534.92,0.00019725,3]
[348659789,1736701840804,-534.92,0.00019725,3]
[348659791,1736701840816,-500.0,0.00019726,3]
[348659793,1736701840825,-500.0,0.00019726,3]
[348659795,1736701840834,-500.0,0.00019726,3]
[348659796,1736701840843,-500.0,0.00019726,3]
[348659798,1736701840854,-500.0,0.00019726,3]
[348659800,1736701840863,-341.77576464,0.00019726,3]
[348659802,1736701840873,-500.0,0.00019726,3]
[348659804,1736701840883,-500.0,0.00019726,3]
[348659805,1736701840892,-500.0,0.00019726,3]
[348659806,1736701840901,-500.0,0.00019726,3]
[348659807,1736701840911,-500.0,0.00019726,3]
[348659809,1736701840920,-500.0,0.00019726,3]
[348659811,1736701840930,-300.71718422,0.00019726,3]
[348659813,1736701840939,-500.0,0.00019726,3]
[348659814,1736701840948,-500.0,0.00019726,3]
[348659816,1736701840957,-500.0,0.00019726,3]
[348659818,1736701840966,-500.0,0.00019726,3]
[348659820,1736701840976,-500.0,0.00019726,3]
[348659821,1736701840985,-500.0,0.00019726,3]
[348659823,1736701840994,-500.0,0.00019726,3]
[348659825,1736701841003,-500.0,0.00019726,3]
[348659827,1736701841012,-500.0,0.00019726,3]
[348659829,1736701841021,-500.0,0.00019726,3]
[348659830,1736701841031,-500.0,0.00019726,3]
[348659832,1736701841040,-500.0,0.00019726,3]
[348659834,1736701841049,-500.0,0.00019726,3]
[348659836,1736701841059,-500.0,0.00019726,3]
[348659837,1736701841068,-500.0,0.00019726,3]
[348659839,1736701841077,-500.0,0.00019726,3]
[348659841,1736701841087,-500.0,0.00019726,3]
[348659843,1736701841096,-500.0,0.00019726,3]
[348659844,1736701841105,-500.0,0.00019726,3]
[348659846,1736701841114,-500.0,0.00019726,3]
[348659848,1736701841123,-610.787209,0.00019726,3]
[348659849,1736701841132,-500.0,0.00019726,3]
[348659851,1736701841142,-500.0,0.00019726,3]
[348659852,1736701841151,-500.0,0.00019726,3]
[348659853,1736701841160,-500.0,0.00019726,3]
[348659854,1736701841170,-984.12,0.00019726,3]
[348659855,1736701841179,-500.0,0.00019726,3]
[348659856,1736701841188,-500.0,0.00019726,3]
[348659857,1736701841197,-500.0,0.00019726,3]
[348659858,1736701841206,-500.0,0.00019726,3]
[348659859,1736701841216,-500.0,0.00019726,3]
[348659860,1736701841225,-500.0,0.00019726,3]
[348659861,1736701841234,-500.0,0.00019726,3]
[348659862,1736701841243,-500.0,0.00019726,3]
[348659863,1736701841252,-500.0,0.00019726,3]
[348659864,1736701841261,-500.0,0.00019726,3]
[348659865,1736701841272,-500.0,0.00019726,3]
[348659866,1736701841281,-294.62085274,0.00019726,3]
[348659867,1736701841290,-500.0,0.00019726,3]
[348659868,1736701841299,-500.0,0.00019726,3]
[348659869,1736701841309,-500.0,0.00019726,3]
[348659870,1736701841319,-545.44524399,0.00019726,3]
[348659871,1736701841328,-500.0,0.00019726,3]
[348659872,1736701841337,-500.0,0.00019726,3]
[348659873,1736701841346,-500.0,0.00019726,2]
[348659874,1736701841356,-500.0,0.00019726,3]
[348659875,1736701841365,-500.0,0.00019726,3]
[348659876,1736701841374,-500.0,0.00019726,3]
[348659877,1736701841383,-500.0,0.00019726,3]
[348659878,1736701841392,-500.0,0.00019726,3]
[348659879,1736701841401,-500.0,0.00019726,3]
[348659880,1736701841411,-500.0,0.00019726,3]
[348659881,1736701841419,-500.0,0.00019726,3]
[348659882,1736701841428,-500.0,0.00019726,3]
[348659884,1736701841438,-500.0,0.00019726,3]
[348659886,1736701841447,-500.0,0.00019726,3]
[348659888,1736701841457,-500.0,0.00019726,3]
[348659889,1736701841466,-523.99385536,0.00019726,3]
[348659891,1736701841475,-500.0,0.00019726,3]
[348659893,1736701841485,-628.2,0.00019726,3]
[348659895,1736701841495,-819.53,0.00019726,2]
[348659897,1736701841503,-500.0,0.00019726,3]
[348659899,1736701841513,-797.34,0.00019726,3]
[348659900,1736701841522,-500.0,0.00019726,3]
[348659902,1736701841531,-500.0,0.00019726,3]
[348659903,1736701841541,-500.0,0.00019726,3]
[348659905,1736701841550,-769.56,0.00019726,3]
[348659907,1736701841559,-500.0,0.00019726,3]
[348659909,1736701841568,-500.0,0.00019726,3]
[348659911,1736701841577,-193.48,0.00019726,3]
[348659912,1736701841586,-500.0,0.00019726,3]
[348659914,1736701841596,-500.0,0.00019726,3]
[348659916,1736701841605,-500.0,0.00019726,3]
[348659918,1736701841614,-500.0,0.00019726,3]
[348659920,1736701841624,-500.0,0.00019726,2]
[348659922,1736701841633,-500.0,0.00019726,3]
[348659924,1736701841644,-500.0,0.00019726,3]
[348659926,1736701841653,-534.83,0.00019726,3]
[348659928,1736701841662,-500.0,0.00019726,3]
[348659929,1736701841672,-500.0,0.00019726,3]
[348659931,1736701841681,-500.0,0.00019726,3]
[348659933,1736701841690,-500.0,0.00019726,3]
[348659935,1736701841700,-363.5,0.00019726,3]
[348659937,1736701841709,-500.0,0.00019726,3]
[348659939,1736701841718,-503.82,0.00019726,3]
[348659941,1736701841727,-500.0,0.00019726,3]
[348659942,1736701841736,-500.0,0.00019726,3]
[348659944,1736701841746,-500.0,0.00019726,3]
[348659946,1736701841755,-500.0,0.00019726,3]
[348659948,1736701841764,-268.84,0.00019726,3]
[348659950,1736701841774,-500.0,0.00019726,3]
[348659952,1736701841783,-4946.84,0.00019726,3]
[348659954,1736701841792,-500.0,0.00019726,3]
[348659956,1736701841802,-556.2,0.00019726,3]
[348659957,1736701841816,-500.0,0.00019726,3]
[348659959,1736701841826,-500.0,0.00019726,3]
[348659961,1736701841835,-500.0,0.00019726,3]
[348659963,1736701841844,-500.0,0.00019726,3]
[348659965,1736701841853,-500.0,0.00019726,3]
[348659967,1736701841863,-500.0,0.00019726,3]
[348659969,1736701841872,-500.0,0.00019726,3]
[348659970,1736701841882,-500.0,0.00019726,3]
[348659972,1736701841891,-500.0,0.00019726,3]
[348659974,1736701841900,-500.0,0.00019726,3]
[348659976,1736701841910,-500.0,0.00019726,3]
[348659978,1736701841919,-500.0,0.00019726,3]
[348659979,1736701841928,-601.73012708,0.00019726,3]
[348659981,1736701841938,-500.0,0.00019726,3]
[348659983,1736701841947,-500.0,0.00019726,3]
[348659985,1736701841957,-500.0,0.00019726,3]
[348659987,1736701841967,-500.0,0.00019726,3]
[348659989,1736701841977,-500.0,0.00019726,3]
[348659991,1736701841986,-1260.4,0.00019726,3]
[348659993,1736701841995,-500.0,0.00019726,3]
[348659994,1736701842005,-500.0,0.00019726,3]
[348659996,1736701842014,-500.0,0.00019726,3]
[348659998,1736701842024,-500.0,0.00019726,3]
[348660000,1736701842033,-500.0,0.00019773,2]
[348660002,1736701842042,-420.0,0.00019794,2]
[348660004,1736701842052,-150.0,0.00019894,2]
[348660006,1736701842062,-2037.0,0.00019947,2]
[348660007,1736701842071,-1292.558,0.00019947,2]
[348660009,1736701842081,-534.92,0.00019999,3]
[348660011,1736701842090,-500.0,0.0002,3]
[348660013,1736701842100,-500.0,0.0002,3]
[348660015,1736701842111,-845.74,0.0002,2]
[348660017,1736701842120,-500.0,0.0002,3]
[348660019,1736701842129,-500.0,0.0002,3]
[348660020,1736701842139,-500.0,0.0002,3]
[348660022,1736701842148,-500.0,0.0002,3]
[348660024,1736701842157,-183.99898311,0.0002,2]
[348660026,1736701842167,-235.82239384,0.0002,3]
[348660028,1736701842176,-500.0,0.0002,3]
[348660030,1736701842185,-3300.0,0.0002,2]
[348660032,1736701842194,-500.0,0.0002,3]
[348660033,1736701842204,-575.2,0.0002,3]
[348660035,1736701842213,-500.0,0.0002,3]
[348660037,1736701842222,-500.0,0.0002,3]
[348660039,1736701842231,-609.30933581,0.0002,3]
[348660041,1736701842241,-500.0,0.0002,3]
[348660043,1736701842250,-500.0,0.0002,3]
[348660045,1736701842260,-500.0,0.0002,3]
[348660047,1736701842269,-500.0,0.0002,3]
[348660048,1736701842279,-500.0,0.0002,3]
[348660050,1736701842288,-500.0,0.0002,3]
[348660052,1736701842297,-500.0,0.0002,3]
[348660054,1736701842307,-500.0,0.0002,3]
[348660056,1736701842316,-500.0,0.0002,3]
[348660058,1736701842326,-984.12,0.0002,3]
[348660060,1736701842336,-507.44777956,0.0002,3]
[348660062,1736701842345,-500.0,0.0002,3]
[348660063,1736701842355,-500.0,0.0002,3]
[348660065,1736701842364,-500.0,0.0002,3]
[348660067,1736701842373,-500.0,0.0002,3]
[348660069,1736701842382,-500.0,0.0002,3]
[348660071,1736701842391,-300.65997421,0.0002,3]
[348660073,1736701842400,-500.0,0.0002,3]
[348660074,1736701842410,-484.54,0.0002,3]
[348660076,1736701842419,-335.0,0.0002,8]
[348660078,1736701842428,-500.0,0.0002,3]
[348660080,1736701842437,-500.0,0.0002,3]
[348660082,1736701842446,-500.0,0.0002,3]
[348660096,1736701842549,-500.0,0.0002,3]
[348660098,1736701842558,-500.0,0.0002,2]
[348660101,1736701842567,-500.0,0.0002,3]
[348660104,1736701842576,-565.00843894,0.0002,3]
[348660107,1736701842586,-500.0,0.0002,3]
[348660110,1736701842595,-500.0,0.0002,3]
[348660111,1736701842604,-500.0,0.0002,3]
[348660113,1736701842615,-500.0,0.0002,3]
[348660115,1736701842624,-500.0,0.0002,3]
[348660117,1736701842633,-500.0,0.0002,3]
[348660119,1736701842643,-500.0,0.0002,3]
[348660121,1736701842652,-9369.08,0.0002,2]
[348660122,1736701842662,-500.0,0.0002,3]
[348660124,1736701842671,-500.0,0.0002,3]
[348660126,1736701842681,-500.0,0.0002,3]
[348660128,1736701842690,-500.0,0.0002,3]
[348660130,1736701842700,-819.53,0.0002,2]
[348660132,1736701842709,-268.3393543,0.0002,3]
[348660134,1736701842718,-797.34,0.0002,3]
[348660135,1736701842728,-500.0,0.0002,3]
[348660137,1736701842737,-500.0,0.0002,3]
[348660139,1736701842747,-769.56,0.0002,3]
[348660141,1736701842757,-500.0,0.0002,3]
[348660143,1736701842767,-243.46826239,0.0002,3]
[348660145,1736701842776,-500.0,0.0002,3]
[348660147,1736701842786,-151.0,0.0002,3]
[348660149,1736701842795,-335.38,0.0002,3]
[348660151,1736701842806,-500.0,0.0002,3]
[348660153,1736701842816,-500.0,0.0002,3]
[348660154,1736701842827,-500.0,0.0002,2]
[348660156,1736701842837,-500.0,0.0002,3]
[348660158,1736701842847,-500.0,0.0002,3]
[348660160,1736701842856,-534.83,0.0002,3]
[348660162,1736701842866,-500.0,0.0002,3]
[348660164,1736701842875,-500.0,0.0002,3]
[348660166,1736701842886,-500.0,0.0002,3]
[348660167,1736701842895,-500.0,0.0002,3]
[348660168,1736701842904,-500.0,0.0002,3]
[348660169,1736701842914,-500.0,0.0002,3]
[348660170,1736701842923,-500.0,0.0002,3]
[348660171,1736701842932,-500.0,0.0002,3]
[348660172,1736701842941,-500.0,0.0002,3]
[348660173,1736701842951,-500.0,0.0002,3]
[348660174,1736701842960,-4946.84,0.0002,3]
[348660175,1736701842970,-500.0,0.0002,3]
[348660176,1736701842979,-556.2,0.0002,3]
[348660177,1736701842988,-500.0,0.0002,3]
[348660178,1736701842997,-500.0,0.0002,3]
[348660179,1736701843007,-500.0,0.0002,3]
[348660180,1736701843016,-500.0,0.0002,3]
[348660181,1736701843025,-500.0,0.0002,3]
[348660182,1736701843035,-500.0,0.0002,3]
[348660183,1736701843044,-500.0,0.0002,3]
[348660184,1736701843053,-500.0,0.0002,3]
[348660185,1736701843062,-500.0,0.0002,3]
[348660186,1736701843071,-500.0,0.0002,3]
[348660187,1736701843081,-500.0,0.0002,3]
[348660188,1736701843090,-500.0,0.0002,3]
[348660189,1736701843099,-301.48831961,0.0002,3]
[348660190,1736701843108,-500.0,0.0002,3]
[348660191,1736701843117,-500.0,0.0002,3]
[348660192,1736701843127,-1260.4,0.0002,3]
[348660193,1736701843136,-500.0,0.0002,3]
[348660194,1736701843145,-500.0,0.0002,3]
[348660195,1736701843154,-1000.0,0.00020021,2]
[348660196,1736701843164,-500.0,0.00020136,3]
[348660197,1736701843173,-534.92,0.00020199,3]
[348660198,1736701843182,-1976.5,0.000202,2]
[348660199,1736701843191,-4974.11,0.000202,2]
[348660200,1736701843202,-534.92,0.00020272,3]
[348660201,1736701843211,-500.0,0.00020273,3]
[348660202,1736701843221,-198.65986322,0.00020273,3]
[348660203,1736701843230,-500.0,0.00020273,3]
[348660204,1736701843239,-500.0,0.00020273,3]
[348660205,1736701843248,-286.55054177,0.00020273,3]
[348660206,1736701843258,-500.0,0.00020273,3]
[348660207,1736701843267,-500.0,0.00020273,3]
[348660208,1736701843275,-500.0,0.00020273,3]
[348660209,1736701843284,-564.17,0.00020273,3]
[348660210,1736701843293,-500.0,0.00020273,3]
[348660211,1736701843303,-500.0,0.00020273,3]
[348660212,1736701843311,-500.0,0.00020273,3]
[348660213,1736701843321,-398.59,0.00020273,3]
[348660214,1736701843330,-500.0,0.00020273,3]
[348660215,1736701843339,-984.12,0.00020273,3]
[348660216,1736701843348,-500.0,0.00020273,3]
[348660217,1736701843358,-500.0,0.00020273,3]
[348660218,1736701843366,-500.0,0.00020273,3]
[348660219,1736701843375,-598.73,0.00020273,3]
[348660220,1736701843385,-500.0,0.00020273,3]
[348660221,1736701843395,-500.0,0.00020273,3]
[348660222,1736701843404,-500.0,0.00020273,3]
[348660223,1736701843413,-500.0,0.00020273,3]
[348660224,1736701843422,-500.0,0.00020273,3]
[348660225,1736701843431,-500.0,0.00020273,2]
[348660226,1736701843440,-517.06,0.00020273,3]
[348660227,1736701843449,-500.0,0.00020273,3]
[348660228,1736701843458,-500.0,0.00020273,3]
[348660229,1736701843467,-500.0,0.00020273,3]
[348660230,1736701843476,-500.0,0.00020273,3]
[348660231,1736701843486,-572.27,0.00020273,3]
[348660232,1736701843495,-500.0,0.00020273,3]
[348660233,1736701843505,-506.29421908,0.00020273,3]
[348660234,1736701843514,-500.0,0.00020273,3]
[348660235,1736701843523,-500.0,0.00020273,3]
[348660236,1736701843532,-819.53,0.00020273,2]
[348660237,1736701843542,-797.34,0.00020273,3]
[348660238,1736701843551,-500.0,0.00020273,3]
[348660239,1736701843560,-500.0,0.00020273,3]
[348660240,1736701843570,-769.56,0.00020273,3]
[348660241,1736701843579,-500.0,0.00020273,3]
[348660242,1736701843588,-500.0,0.00020273,3]
[348660243,1736701843597,-500.0,0.00020273,3]
[348660244,1736701843606,-500.0,0.00020273,3]
[348660245,1736701843621,-500.0,0.00020273,2]
[348660246,1736701843635,-500.0,0.00020273,3]
[348660247,1736701843645,-500.0,0.00020273,3]
[348660249,1736701843654,-534.83,0.00020273,3]
[348660250,1736701843664,-500.0,0.00020273,3]
[348660252,1736701843673,-470.57339483,0.00020273,3]
[348660254,1736701843684,-500.0,0.00020273,3]
[348660256,1736701843693,-500.0,0.00020273,3]
[348660258,1736701843703,-500.0,0.00020273,3]
[348660260,1736701843713,-500.0,0.00020273,3]
[348660262,1736701843723,-500.0,0.00020273,3]
[348660264,1736701843732,-500.0,0.00020273,3]
[348660266,1736701843741,-503.32122877,0.00020273,3]
[348660269,1736701843751,-500.0,0.00020273,3]
[348660271,1736701843760,-4946.84,0.00020273,3]
[348660273,1736701843770,-500.0,0.00020273,3]
[348660275,1736701843779,-556.2,0.00020273,3]
[348660277,1736701843790,-500.0,0.00020273,3]
[348660279,1736701843799,-175.97,0.00020273,3]
[348660281,1736701843812,-500.0,0.00020273,3]
[348660283,1736701843821,-530.7901522,0.00020273,3]
[348660285,1736701843831,-500.0,0.00020273,3]
[348660287,1736701843841,-450.81991012,0.00020273,3]
[348660289,1736701843850,-500.0,0.00020273,3]
[348660291,1736701843859,-500.0,0.00020273,3]
[348660293,1736701843868,-500.0,0.00020273,3]
[348660295,1736701843878,-500.0,0.00020273,3]
[348660297,1736701843887,-500.0,0.00020273,3]
[348660300,1736701843898,-500.0,0.00020273,3]
[348660302,1736701843907,-1260.4,0.00020273,3]
[348660304,1736701843917,-500.0,0.00020273,3]
[348660306,1736701843926,-500.0,0.00020273,3]
[348660308,1736701843935,-1000.0,0.00020321,2]
[348660310,1736701843945,-400.0,0.00020447,2]
[348660312,1736701843954,-151.0,0.000205,4]
[348660314,1736701843964,-314.4515498,0.00020521,2]
[348660316,1736701843973,-534.92,0.00020546,3]
[348660318,1736701843982,-500.0,0.00020547,3]
[348660320,1736701843992,-361.49,0.00020547,3]
[348660322,1736701844001,-500.0,0.00020547,3]
[348660324,1736701844011,-500.0,0.00020547,3]
[348660326,1736701844020,-500.0,0.00020547,3]
[348660328,1736701844030,-500.0,0.00020547,3]
[348660330,1736701844039,-500.0,0.00020547,3]
[348660332,1736701844050,-984.12,0.00020547,3]
[348660334,1736701844059,-500.0,0.00020547,3]
[348660336,1736701844069,-500.0,0.00020547,3]
[348660338,1736701844078,-500.0,0.00020547,3]
[348660340,1736701844088,-500.0,0.00020547,3]
[348660342,1736701844097,-500.0,0.00020547,3]
[348660344,1736701844108,-500.0,0.00020547,3]
[348660346,1736701844117,-500.0,0.00020547,3]
[348660348,1736701844127,-500.0,0.00020547,3]
[348660351,1736701844136,-500.0,0.00020547,3]
[348660353,1736701844145,-293.08,0.00020547,3]
[348660355,1736701844154,-500.0,0.00020547,3]
[348660357,1736701844163,-500.0,0.00020547,2]
[348660359,1736701844173,-500.0,0.00020547,3]
[348660361,1736701844182,-500.0,0.00020547,3]
[348660363,1736701844192,-500.0,0.00020547,3]
[348660365,1736701844201,-500.0,0.00020547,3]
[348660367,1736701844211,-500.0,0.00020547,3]
[348660369,1736701844220,-500.0,0.00020547,3]
[348660371,1736701844229,-819.53,0.00020547,2]
[348660373,1736701844238,-797.34,0.00020547,3]
[348660375,1736701844248,-583.89830634,0.00020547,3]
[348660377,1736701844257,-500.0,0.00020547,3]
[348660379,1736701844267,-769.56,0.00020547,3]
[348660381,1736701844276,-500.0,0.00020547,3]
[348660383,1736701844285,-500.0,0.00020547,3]
[348660385,1736701844295,-500.0,0.00020547,3]
[348660387,1736701844304,-151.0,0.00020547,2]
[348660389,1736701844313,-277.00922841,0.00020547,3]
[348660391,1736701844322,-500.0,0.00020547,2]
[348660393,1736701844331,-500.0,0.00020547,3]
[348660394,1736701844340,-534.83,0.00020547,3]
[348660395,1736701844350,-500.0,0.00020547,3]
[348660396,1736701844359,-500.0,0.00020547,3]
[348660397,1736701844369,-500.0,0.00020547,3]
[348660398,1736701844378,-500.0,0.00020547,3]
[348660399,1736701844388,-500.0,0.00020547,3]
[348660400,1736701844397,-500.0,0.00020547,3]
[348660401,1736701844406,-500.0,0.00020547,3]
[348660402,1736701844416,-4946.84,0.00020547,3]
[348660403,1736701844426,-500.0,0.00020547,3]
[348660404,1736701844435,-556.2,0.00020547,3]
[348660405,1736701844446,-393.57586248,0.00020547,3]
[348660406,1736701844456,-500.0,0.00020547,3]
[348660407,1736701844466,-500.0,0.00020547,3]
[348660408,1736701844475,-500.0,0.00020547,3]
[348660409,1736701844485,-151.0,0.00020547,2]
[348660410,1736701844495,-524.27,0.00020547,3]
[348660411,1736701844504,-624.47259849,0.00020547,3]
[348660412,1736701844514,-500.0,0.00020547,3]
[348660413,1736701844523,-500.0,0.00020547,3]
[348660414,1736701844533,-1260.4,0.00020547,3]
[348660415,1736701844542,-500.0,0.00020547,3]
[348660416,1736701844551,-500.0,0.00020547,3]
[348660417,1736701844561,-534.92,0.0002082,3]
[348660418,1736701844571,-504.15,0.00020821,3]
[348660419,1736701844580,-500.0,0.00020821,3]
[348660420,1736701844589,-500.0,0.00020821,3]
[348660421,1736701844599,-500.0,0.00020821,3]
[348660422,1736701844608,-500.0,0.00020821,3]
[348660423,1736701844618,-984.12,0.00020821,3]
[348660424,1736701844628,-500.0,0.00020821,3]
[348660425,1736701844638,-500.0,0.00020821,3]
[348660426,1736701844647,-500.0,0.00020821,3]
[348660427,1736701844657,-500.0,0.00020821,3]
[348660428,1736701844666,-500.0,0.00020821,3]
[348660429,1736701844676,-500.0,0.00020821,2]
[348660430,1736701844685,-500.0,0.00020821,3]
[348660431,1736701844694,-536.2,0.00020821,3]
[348660432,1736701844703,-500.0,0.00020821,3]
[348660433,1736701844712,-500.0,0.00020821,3]
[348660434,1736701844722,-500.0,0.00020821,3]
[348660435,1736701844731,-151.0,0.00020821,2]
[348660436,1736701844740,-819.53,0.00020821,2]
[348660437,1736701844750,-797.34,0.00020821,3]
[348660438,1736701844759,-500.0,0.00020821,3]
[348660439,1736701844769,-769.56,0.00020821,3]
[348660440,1736701844778,-500.0,0.00020821,3]
[348660441,1736701844787,-500.0,0.00020821,3]
[348660446,1736701844901,-371.28858741,0.00020821,3]
[348660448,1736701844911,-500.0,0.00020821,2]
[348660450,1736701844920,-534.83,0.00020821,3]
[348660452,1736701844930,-568.67290174,0.00020821,3]
[348660454,1736701844938,-500.0,0.00020821,3]
[348660456,1736701844947,-390.1802727,0.00020821,3]
[348660458,1736701844957,-276.18575728,0.00020821,3]
[348660460,1736701844966,-501.21,0.00020821,3]
[348660462,1736701844976,-500.0,0.00020821,3]
[348660464,1736701844985,-500.0,0.00020821,3]
[348660466,1736701844995,-4946.84,0.00020821,3]
[348660468,1736701845004,-500.0,0.00020821,3]
[348660470,1736701845013,-556.2,0.00020821,3]
[348660472,1736701845023,-500.0,0.00020821,3]
[348660474,1736701845032,-500.0,0.00020821,3]
[348660476,1736701845041,-500.0,0.00020821,3]
[348660478,1736701845051,-500.0,0.00020821,3]
[348660480,1736701845060,-500.0,0.00020821,3]
[348660482,1736701845069,-1260.4,0.00020821,3]
[348660484,1736701845078,-196.15093824,0.00020821,3]
[348660486,1736701845087,-353.2648614,0.00020822,2]
[348660488,1736701845096,-151.0,0.000209,4]
[348660490,1736701845105,-4688.837998,0.00021,2]
[348660492,1736701845115,-500.49987296,0.00021025,2]
[348660494,1736701845124,-500.0,0.00021025,2]
[348660496,1736701845134,-500.0,0.00021025,2]
[348660498,1736701845143,-500.0,0.00021025,2]
[348660500,1736701845152,-500.0,0.00021095,3]
[348660502,1736701845161,-500.0,0.00021095,3]
[348660504,1736701845170,-500.0,0.00021095,3]
[348660506,1736701845181,-500.0,0.00021095,3]
[348660508,1736701845190,-984.12,0.00021095,3]
[348660510,1736701845199,-500.0,0.00021095,3]